fUSD/lending_fUSD_20251230
["ID","MTS","AMOUNT","RATE_DAILY","PERIOD"]
[400058829,1767057039326,-380.42592953,0.00041095,120]
[400058831,1767057039337,-500.0,0.00041095,120]
[400058833,1767057039348,-500.0,0.00041095,120]
[400058836,1767057039358,-371.55167409,0.00041095,120]
[400058838,1767057039368,-459.63419303,0.00041095,120]
[400058840,1767057039379,-500.0,0.00041095,120]
[400058842,1767057039390,-285.98282305,0.00041095,120]
[400058844,1767057039401,-500.0,0.00041095,120]
[400058846,1767057039411,-200.0,0.00041095,120]
[400058849,1767057039422,-500.0,0.00041095,30]
[400058851,1767057039447,-500.0,0.00041095,30]
[400058852,1767057039458,-356.16109666,0.00041095,120]
[400058853,1767057039470,-318.81360319,0.00041095,120]
[400058854,1767057039481,-500.0,0.00041095,120]
[400058855,1767057039492,-282.02167324,0.00041095,120]
[400058856,1767057039504,-500.0,0.00041095,120]
[400058857,1767057039516,-236.14572497,0.00041095,120]
[400058858,1767057039527,-389.52726674,0.00041095,120]
[400058859,1767057039539,-381.68398655,0.00041095,120]
[400058862,1767057039552,-457.68255314,0.00041095,120]
[400058864,1767057039563,-392.03931637,0.00041095,120]
[400058866,1767057039574,-310.13832298,0.00041095,120]
[400058868,1767057039584,-354.5694392,0.00041095,120]
[400058870,1767057039595,-375.83616454,0.00041095,120]
[400058872,1767057039606,-339.91662516,0.00041095,120]
[400058875,1767057039617,-574.97,0.00041095,120]
[400058877,1767057039628,-574.97,0.00041095,120]
[400058879,1767057039639,-500.0,0.00041095,120]
[400058881,1767057039650,-500.0,0.00041095,120]
[400058883,1767057039661,-252.55892238,0.00041095,120]
[400058885,1767057039672,-564.17151641,0.00041095,120]
[400058887,1767057039682,-300.80302461,0.00041095,120]
[400058890,1767057039694,-235.39753348,0.00041095,120]
[400058892,1767057039705,-200.0,0.00041095,120]
[400058894,1767057039715,-286.289732,0.00041095,120]
[400058896,1767057039726,-293.63648189,0.00041095,120]
[400058898,1767057039737,-500.0,0.00041095,120]
[400058900,1767057039747,-500.0,0.00041095,120]
[400058902,1767057039758,-292.78598436,0.00041095,120]
[400058905,1767057039773,-500.0,0.00041095,120]
[400058907,1767057039785,-211.83475622,0.00041095,120]
[400058910,1767057039797,-402.86129218,0.00041095,120]
[400058912,1767057039808,-334.97878701,0.00041095,120]
[400058914,1767057039819,-382.43759317,0.00041095,120]
[400058916,1767057039830,-500.0,0.00041095,120]
[400058918,1767057039841,-500.0,0.00041095,120]
[400058921,1767057039851,-500.0,0.00041095,120]
[400058923,1767057039862,-500.0,0.00041095,120]
[400058925,1767057039873,-500.0,0.00041095,120]
[400058927,1767057039884,-500.0,0.00041095,120]
[400058929,1767057039896,-500.0,0.00041095,120]
[400058932,1767057039907,-621.91819427,0.00041095,120]
[400058934,1767057039919,-390.36117232,0.00041095,120]
[400058937,1767057039930,-333.99578095,0.00041095,120]
[400058940,1767057039941,-280.64608852,0.00041095,120]
[400058943,1767057039952,-200.0,0.00041095,120]
[400058947,1767057039963,-200.0,0.00041095,120]
[400058949,1767057039974,-200.0,0.00041095,120]
[400058951,1767057039985,-278.85216782,0.00041095,120]
[400058953,1767057039996,-500.0,0.00041095,16]
[400058955,1767057040007,-500.0,0.00041095,16]
[400058957,1767057040018,-200.0,0.00041095,120]
[400058960,1767057040029,-200.0,0.00041095,120]
[400058962,1767057040040,-341.28,0.00041095,120]
[400058964,1767057040050,-175.37761041,0.00041095,120]
[400058966,1767057040061,-277.1609489,0.00041095,120]
[400058968,1767057040072,-311.41412771,0.00041095,120]
[400058971,1767057040083,-500.0,0.00041095,120]
[400058973,1767057040094,-500.0,0.00041095,120]
[400058975,1767057040104,-314.84607118,0.00041095,120]
[400058977,1767057040115,-500.0,0.00041095,120]
[400058980,1767057040134,-465.36,0.00041095,120]
[400058982,1767057040145,-500.0,0.00041095,120]
[400058984,1767057040157,-500.0,0.00041095,120]
[400058986,1767057040169,-500.0,0.00041095,120]
[400058988,1767057040180,-500.0,0.00041095,120]
[400058991,1767057040192,-251.46995744,0.00041095,120]
[400058993,1767057040203,-200.0,0.00041095,120]
[400058995,1767057040214,-500.0,0.00041095,120]
[400058997,1767057040225,-314.48,0.00041095,120]
[400058999,1767057040236,-457.6019606,0.00041095,120]
[400059002,1767057040247,-200.0,0.00041095,120]
[400059004,1767057040257,-500.0,0.00041095,120]
[400059006,1767057040268,-500.0,0.00041095,120]
[400059008,1767057040279,-500.0,0.00041095,120]
[400059010,1767057040290,-500.0,0.00041095,120]
[400059012,1767057040302,-260.32137177,0.00041095,120]
[400059015,1767057040313,-221.2896729,0.00041095,120]
[400059017,1767057040324,-353.77337808,0.00041095,120]
[400059019,1767057040335,-349.1656353,0.00041095,120]
[400059021,1767057040347,-200.0,0.00041095,120]
[400059023,1767057040357,-500.0,0.00041095,120]
[400059026,1767057040368,-500.0,0.00041095,120]
[400059028,1767057040380,-500.0,0.00041095,120]
[400059030,1767057040391,-500.0,0.00041095,120]
[400059032,1767057040403,-200.0,0.00041095,120]
[400059069,1767057040413,-397.2809207,0.00041095,120]
[400059073,1767057040836,-436.50762431,0.00041095,120]
[400059075,1767057040850,-200.0,0.00041095,120]
[400059077,1767057040860,-500.0,0.00041095,120]
[400059078,1767057040869,-500.0,0.00041095,120]
[400059080,1767057040879,-500.0,0.00041095,120]
[400059082,1767057040889,-500.0,0.00041095,120]
[400059084,1767057040899,-279.87415363,0.00041095,120]
[400059086,1767057040908,-500.0,0.00041095,120]
[400059088,1767057040920,-235.68949999,0.00041095,120]
[400059090,1767057040930,-500.0,0.00041095,120]
[400059092,1767057040939,-500.0,0.00041095,120]
[400059093,1767057040949,-500.0,0.00041095,120]
[400059095,1767057040959,-344.96543506,0.00041095,120]
[400059097,1767057040974,-200.0,0.00041095,120]
[400059099,1767057040993,-500.0,0.00041095,120]
[400059101,1767057041007,-389.88324353,0.00041095,120]
[400059103,1767057041017,-500.0,0.00041095,120]
[400059105,1767057041028,-500.0,0.00041095,120]
[400059107,1767057041038,-166.72,0.00041095,120]
[400059108,1767057041048,-458.01174583,0.00041095,120]
[400059110,1767057041057,-500.0,0.00041095,120]
[400059112,1767057041067,-336.66098415,0.00041095,120]
[400059114,1767057041076,-200.0,0.00041095,120]
[400059116,1767057041086,-500.0,0.00041095,120]
[400059118,1767057041096,-500.0,0.00041095,120]
[400059120,1767057041106,-200.0,0.00041095,120]
[400059122,1767057041117,-500.0,0.00041095,120]
[400059123,1767057041129,-200.0,0.00041095,120]
[400059125,1767057041140,-500.0,0.00041095,120]
[400059127,1767057041149,-410.0,0.00041095,120]
[400059129,1767057041159,-500.0,0.00041095,120]
[400059130,1767057041170,-200.0,0.00041095,120]
[400059132,1767057041180,-500.0,0.00041095,120]
[400059134,1767057041190,-230.63328582,0.00041095,120]
[400059136,1767057041203,-500.0,0.00041095,120]
[400059138,1767057041212,-235.20351801,0.00041095,120]
[400059140,1767057041222,-404.85589305,0.00041095,120]
[400059142,1767057041232,-500.0,0.00041095,120]
[400059144,1767057041241,-200.0,0.00041095,120]
[400059146,1767057041251,-584.88,0.00041095,120]
[400059148,1767057041260,-500.0,0.00041095,120]
[400059150,1767057041270,-215.39900643,0.00041095,120]
[400059152,1767057041279,-395.88073506,0.00041095,120]
[400059153,1767057041289,-500.0,0.00041095,120]
[400059155,1767057041298,-633.89038134,0.00041095,120]
[400059157,1767057041308,-500.0,0.00041095,120]
[400059159,1767057041317,-500.0,0.00041095,120]
[400059161,1767057041326,-387.5917503,0.00041095,120]
[400059163,1767057041336,-500.0,0.00041095,120]
[400059164,1767057041347,-200.0,0.00041095,120]
[400059166,1767057041356,-500.0,0.00041095,120]
[400059168,1767057041366,-200.0,0.00041095,120]
[400059170,1767057041376,-500.0,0.00041095,120]
[400059172,1767057041385,-150.0,0.00041095,120]
[400059174,1767057041395,-509.93070006,0.00041095,30]
[400059176,1767057041404,-500.0,0.00041095,120]
[400059178,1767057041414,-500.0,0.00041095,120]
[400059179,1767057041424,-645.52262284,0.00041095,120]
[400059181,1767057041433,-500.0,0.00041095,120]
[400059183,1767057041443,-331.80291631,0.00041095,120]
[400059185,1767057041453,-4032.50232241,0.00041095,35]
[400059187,1767057041463,-209.04771004,0.00041095,120]
[400059189,1767057041472,-200.0,0.00041095,120]
[400059191,1767057041481,-500.0,0.00041095,120]
[400059193,1767057041490,-448.8192545,0.00041095,120]
[400059195,1767057041500,-200.0,0.00041095,120]
[400059197,1767057041509,-500.0,0.00041095,120]
[400059198,1767057041519,-500.0,0.00041095,120]
[400059200,1767057041529,-607.26633679,0.00041095,120]
[400059202,1767057041538,-351.14901853,0.00041095,120]
[400059204,1767057041547,-500.0,0.00041095,120]
[400059206,1767057041556,-261.90420098,0.00041095,120]
[400059208,1767057041566,-150.0,0.00041096,10]
[400059210,1767057041576,-312.21181666,0.00041096,2]
[400059212,1767057041586,-156.0,0.000411,120]
[400059213,1767057041595,-2613.46583346,0.00041194,15]
[400059215,1767057041605,-561.42,0.00041195,2]
[400059217,1767057041615,-152.0,0.000412,120]
[400059219,1767057041626,-150.0,0.00041205,30]
[400059221,1767057041636,-199.15,0.00041205,30]
[400059223,1767057041646,-1236.99,0.00041205,30]
[400059225,1767057041656,-170.94,0.00041205,30]
[400059227,1767057041667,-150.77,0.00041205,30]
[400059229,1767057041678,-298.75,0.00041205,30]
[400059231,1767057041688,-150.0,0.00041205,30]
[400059233,1767057041697,-554.77,0.00041205,30]
[400059235,1767057041707,-1221.52,0.00041205,30]
[400059237,1767057041716,-178.66,0.00041205,30]
[400059239,1767057041727,-150.0,0.00041205,30]
[400059240,1767057041736,-170.94,0.00041205,30]
[400059242,1767057041746,-150.0,0.00041205,30]
[400059244,1767057041755,-150.0,0.00041205,30]
[400059246,1767057041765,-150.0,0.00041205,30]
[400059248,1767057041775,-554.77,0.00041205,30]
[400059250,1767057041785,-178.66,0.00041205,30]
[400059252,1767057041794,-1221.52,0.00041205,30]
[400059253,1767057041805,-150.0,0.00041205,30]
[400059255,1767057041821,-150.0,0.00041205,30]
[400059257,1767057041832,-170.94,0.00041205,30]
[400059259,1767057041842,-150.0,0.00041205,30]
[400059261,1767057041851,-1221.52,0.00041205,30]
[400059263,1767057041862,-170.94,0.00041205,30]
[400059264,1767057041872,-150.0,0.00041205,30]
[400059265,1767057041881,-178.66,0.00041205,30]
[400059266,1767057041891,-554.77,0.00041205,30]
[400059267,1767057041901,-150.0,0.00041205,30]
[400059268,1767057041911,-150.0,0.00041205,30]
[400059269,1767057041922,-1221.52,0.00041205,30]
[400059270,1767057041931,-554.77,0.00041205,30]
[400059271,1767057041941,-178.66,0.00041205,30]
[400059272,1767057041951,-170.94,0.00041205,30]
[400059273,1767057041961,-150.0,0.00041205,30]
[400059274,1767057041971,-150.0,0.00041205,30]
[400059275,1767057041981,-159.24,0.00041205,30]
[400059277,1767057041990,-1221.52,0.00041205,30]
[400059278,1767057041999,-178.66,0.00041205,30]
[400059280,1767057042008,-554.77,0.00041205,30]
[400059283,1767057042018,-170.94,0.00041205,30]
[400059284,1767057042028,-150.0,0.00041205,30]
[400059287,1767057042037,-170.94,0.00041205,30]
[400059289,1767057042047,-554.77,0.00041205,30]
[400059291,1767057042056,-178.66,0.00041205,30]
[400059293,1767057042065,-1221.52,0.00041205,30]
[400059295,1767057042074,-150.0,0.00041205,30]
[400059297,1767057042084,-554.77,0.00041205,30]
[400059299,1767057042094,-170.94,0.00041205,30]
[400059301,1767057042103,-178.66,0.00041205,30]
[400059303,1767057042112,-1221.52,0.00041205,30]
[400059305,1767057042128,-150.0,0.00041205,30]
[400059307,1767057042138,-554.77,0.00041205,30]
[400059309,1767057042147,-178.66,0.00041205,30]
[400059311,1767057042157,-170.94,0.00041205,30]
[400059313,1767057042167,-150.0,0.00041205,30]
[400059315,1767057042176,-150.0,0.00041205,30]
[400059317,1767057042185,-178.66,0.00041205,30]
[400059319,1767057042200,-554.77,0.00041205,30]
[400059321,1767057042209,-166.55,0.00041205,30]
[400059323,1767057042219,-554.77,0.00041205,30]
[400059325,1767057042228,-178.66,0.00041205,30]
[400059327,1767057042238,-150.0,0.00041205,30]
[400059329,1767057042247,-178.66,0.00041205,30]
[400059331,1767057042257,-554.77,0.00041205,30]
[400059333,1767057042266,-150.0,0.00041205,30]
[400059335,1767057042275,-178.66,0.00041205,30]
[400059337,1767057042285,-554.77,0.00041205,30]
[400059339,1767057042294,-150.0,0.00041205,30]
[400059341,1767057042303,-178.66,0.00041205,30]
[400059343,1767057042313,-554.77,0.00041205,30]
[400059345,1767057042322,-150.0,0.00041205,30]
[400059347,1767057042331,-178.66,0.00041205,30]
[400059349,1767057042342,-554.77,0.00041205,30]
[400059351,1767057042351,-150.0,0.00041205,30]
[400059353,1767057042361,-554.77,0.00041205,30]
[400059355,1767057042370,-250.79,0.00041205,30]
[400059357,1767057042380,-554.77,0.00041205,30]
[400059360,1767057042389,-554.77,0.00041205,30]
[400059361,1767057042399,-554.77,0.00041205,30]
[400059364,1767057042409,-554.77,0.00041205,30]
[400059366,1767057042419,-554.77,0.00041205,30]
[400059368,1767057042428,-554.77,0.00041205,30]
[400059370,1767057042439,-554.77,0.00041205,30]
[400059371,1767057042449,-554.77,0.00041205,30]
[400059373,1767057042459,-554.77,0.00041205,30]
[400059376,1767057042468,-910.21690569,0.00041216,15]
[400059378,1767057042478,-875.35158398,0.00041246,28]
[400059380,1767057042488,-200.0,0.00041266,120]
[400059382,1767057042498,-189.03837,0.00041288,30]
[400059384,1767057042508,-1351.0,0.0004136,30]
[400059386,1767057042517,-226.06701355,0.00041388,31]
[400059388,1767057042527,-515.29202063,0.00041389,15]
[400059400,1767057042636,-2098.17381283,0.00041389,15]
[400059402,1767057042646,-183.08546078,0.00041488,30]
[400059405,1767057042662,-5.95290922,0.00041488,30]
[400059407,1767057042674,-875.35158398,0.00041496,28]
[400059409,1767057042684,-1000.0,0.00041509,14]
[400059411,1767057042694,-910.21690569,0.00041522,15]
[400059414,1767057042705,-2613.46583346,0.00041583,15]
[400059417,1767057042716,-864.20057105,0.00041584,7]
[400059419,1767057042726,-485.0,0.00041602,30]
[400059421,1767057042735,-823.21053483,0.00041667,30]
[400059423,1767057042745,-189.03837,0.00041688,30]
[400059425,1767057042755,-156.0,0.000417,120]
[400059427,1767057042765,-875.35158398,0.00041747,28]
[400059429,1767057042774,-2613.46583346,0.00041778,15]
[400059431,1767057042783,-152.0,0.000418,120]
[400059433,1767057042793,-1006.42,0.000418,120]
[400059435,1767057042803,-910.21690569,0.00041829,15]
[400059437,1767057042812,-442.14799494,0.00041846,2]
[400059617,1767057044573,-119.27200506,0.00041846,2]
[400059619,1767057044583,-151.0,0.00041853,14]
[400059621,1767057044593,-4724.42724344,0.00041856,14]
[400059624,1767057044602,-4724.42724341,0.00041856,14]
[400059626,1767057044612,-4724.42724341,0.00041856,14]
[400059627,1767057044621,-4724.42724341,0.00041856,14]
[400059629,1767057044631,-4724.42724341,0.00041856,14]
[400059631,1767057044640,-4724.42724341,0.00041856,14]
[400059633,1767057044650,-4724.42724341,0.00041856,14]
[400059636,1767057044660,-4724.42724341,0.00041856,14]
[400059638,1767057044670,-4724.42724341,0.00041856,14]
[400059640,1767057044679,-4724.42724341,0.00041856,14]
[400059642,1767057044689,-500.0,0.0004187,2]
[400059643,1767057044699,-500.0,0.0004187,120]
[400059644,1767057044708,-189.03837,0.00041888,30]
[400059645,1767057044717,-200.0,0.00041918,10]
[400059646,1767057044726,-4724.42724341,0.0004194,14]
[400059647,1767057044736,-2613.46583346,0.00041972,15]
[400059648,1767057044745,-875.35158398,0.00041998,28]
[400059649,1767057044755,-222.0,0.00042,30]
[400059650,1767057044764,-485.0,0.00042031,30]
[400059651,1767057044774,-910.21690569,0.00042136,15]
[400059652,1767057044784,-4724.42724341,0.00042144,14]
[400059653,1767057044793,-1351.0,0.00042162,30]
[400059655,1767057044803,-2613.46583346,0.00042167,15]
[400059657,1767057044813,-461.73123326,0.000422,60]
[400059659,1767057044822,-156.0,0.000422,120]
[400059661,1767057044831,-875.35158398,0.00042249,28]
[400059663,1767057044841,-152.0,0.000423,120]
[400059665,1767057044851,-4724.42724341,0.00042348,14]
[400059667,1767057044860,-2613.46583346,0.00042361,15]
[400059669,1767057044870,-561.42,0.0004243,2]
[400059671,1767057044879,-5324.88777,0.0004244,120]
[400059673,1767057044889,-5324.88778,0.0004244,120]
[400059675,1767057044899,-5324.88777,0.0004244,120]
[400059677,1767057044909,-5324.88778,0.0004244,120]
[400059679,1767057044918,-5324.88778,0.0004244,120]
[400059681,1767057044928,-910.21690569,0.00042443,15]
[400059683,1767057044937,-485.0,0.0004246,30]
[400059685,1767057044947,-875.35158398,0.00042499,28]
[400059687,1767057044956,-200.0,0.000425,120]
[400059689,1767057044966,-4724.42724341,0.00042552,14]
[400059691,1767057044975,-2613.46583346,0.00042556,15]
[400059693,1767057044985,-160.0863182,0.00042634,112]
[400059695,1767057044995,-250.0,0.0004274,10]
[400059697,1767057045004,-875.35158398,0.0004275,28]
[400059699,1767057045014,-2613.46583346,0.0004275,15]
[400059701,1767057045023,-614.76085518,0.0004275,2]
[400059703,1767057045033,-1149.95666392,0.0004275,2]
[400059705,1767057045042,-910.21690569,0.0004275,15]
[400059707,1767057045051,-658.59949704,0.0004275,120]
[400059709,1767057045061,-169.29361718,0.0004275,2]
[400059711,1767057045071,-6857.68476931,0.0004275,2]
[400059713,1767057045081,-150.001,0.00042756,30]
[400059716,1767057045091,-4724.42724341,0.00042756,15]
[400059717,1767057045100,-157.07838369,0.00042776,9]
[400059719,1767057045109,-500.0,0.00042797,2]
[400059722,1767057045120,-500.0,0.00042797,120]
[400059724,1767057045132,-156.0,0.000428,120]
[400059726,1767057045141,-253.0,0.000428,40]
[400059727,1767057045150,-150.0,0.00042828,60]
[400059729,1767057045160,-561.42,0.00042838,2]
[400059731,1767057045170,-269.21010668,0.0004284,7]
[400059733,1767057045181,-153.45,0.0004284,2]
[400059735,1767057045191,-153.45,0.0004284,2]
[400059737,1767057045201,-154.17002449,0.00042845,120]
[400059739,1767057045212,-203.06557908,0.00042848,30]
[400059742,1767057045222,-50000.0,0.00042849,46]
[400059743,1767057045231,-50000.0,0.00042849,47]
[400059746,1767057045241,-50000.0,0.00042849,48]
[400059747,1767057045251,-50000.0,0.00042849,49]
[400059750,1767057045260,-50000.0,0.00042849,45]
[400059752,1767057045270,-50000.0,0.00042849,44]
[400059754,1767057045280,-50000.0,0.00042849,43]
[400059756,1767057045290,-50000.0,0.00042849,42]
[400059758,1767057045299,-26678.2331821,0.00042849,41]
[400059760,1767057045311,-1552.68303917,0.00042849,41]
[400059773,1767057045422,-21769.08377873,0.00042849,41]
[400059774,1767057045432,-33224.65874222,0.00042849,40]
[400059786,1767057045529,-150.0,0.00041095,120]
[400059788,1767057045539,-275.94000049,0.00042849,40]
[400059790,1767057045554,-432.56378941,0.00042849,40]
[400059793,1767057045566,-900.0,0.00042849,40]
[400059795,1767057045581,-500.0,0.00042849,40]
[400059797,1767057045593,-330.80621059,0.00042849,40]
[400059825,1767057045838,-14336.03125729,0.00042849,40]
[400059827,1767057045848,-150.0,0.00042849,120]
[400059829,1767057045858,-247.57713676,0.00042849,31]
[400059831,1767057045867,-18158.42441419,0.00042849,27]
[400059833,1767057045877,-150.0,0.00042849,120]
[400059835,1767057045887,-150.0,0.00042849,120]
[400059837,1767057045896,-203.06557908,0.0004285,30]
[400059839,1767057045907,-59951.71165761,0.0004285,7]
[400059842,1767057045923,-1685.2929534,0.0004285,7]
[400059891,1767057046395,-111142.90449723,0.0004285,7]
[400059893,1767057046407,-478.87583448,0.0004285,7]
[400059895,1767057046418,-3591.44293944,0.0004285,7]
[400059965,1767057047076,-3051604.28512693,0.0004285,7]
[400059971,1767057047120,-3428.95868699,0.0004285,7]
[400059983,1767057047234,-11281.30909376,0.0004285,7]
[400059985,1767057047249,-1280.3099978,0.0004285,7]
[400061229,1767057794961,411.0,0.00030136,120]
[400061247,1767057967792,-151.0,0.00016868,2]
[400061248,1767057967821,-151.0,0.00016869,2]
[400061249,1767057967846,-151.0,0.00016911,2]
[400061250,1767057967873,-151.0,0.00016911,2]
[400061251,1767057967904,-14285.12942521,0.00016949,2]
[400061252,1767057967932,-179.67945817,0.00016949,2]
[400061253,1767057967961,-250.0,0.00017,2]
[400061254,1767057967991,-2952053.99816295,0.00017,2]
[400061258,1767058014374,452.12,0.00027215,120]
[400061259,1767058014698,452.12,0.00029937,120]
[400061295,1767058232140,-987.4479749,0.00015,2]
[400061296,1767058232153,-347.43508066,0.00015,2]
[400061297,1767058232165,-1831.3897743,0.00015,2]
[400061298,1767058232176,-4198.7202257,0.00016752,2]
[400061299,1767058232193,-817.45608722,0.00016752,2]
[400061300,1767058232203,-4967.50989662,0.00016752,2]
[400061301,1767058232216,-32.49010338,0.00016752,2]
[400061302,1767058232226,-238.20222549,0.00016752,2]
[400061303,1767058232246,-2581.03791468,0.00016752,2]
[400061304,1767058232259,-2180.75985983,0.00016752,2]
[400061305,1767058232268,-151.0,0.00016878,2]
[400061306,1767058232281,-151.0,0.00016878,2]
[400061307,1767058232291,-300.0,0.00017048,2]
[400061308,1767058232300,-272.3728559,0.00017048,2]
[400061309,1767058232312,-27.6271441,0.00017048,2]
[400061310,1767058232322,-1043.35534216,0.00017049,2]
[400061311,1767058232334,-477.23143448,0.00017049,2]
[400061312,1767058232347,-878.83633744,0.00017049,2]
[400061313,1767058232359,-529.88865121,0.00017049,2]
[400061314,1767058232371,-1073.20076212,0.00017049,2]
[400061315,1767058232383,-298.21739684,0.00017049,2]
[400061316,1767058232395,-10198.49070691,0.00017049,2]
[400061317,1767058232407,-1427.00894998,0.00017049,2]
[400061318,1767058232419,-1991.73526069,0.00017049,2]
[400061319,1767058232430,-445.96440231,0.00017049,2]
[400061320,1767058232446,-653.82212702,0.00017049,2]
[400061321,1767058232458,-1967.75427221,0.00017049,2]
[400061323,1767058232468,-1867.2,0.00017149,2]
[400061325,1767058232478,-253.0,0.00018619,2]
[400061327,1767058232488,-1867.2,0.00019487,2]
[400061329,1767058232498,-3913.53107723,0.00019816,2]
[400061331,1767058232510,-10371.59834796,0.00019816,2]
[400061334,1767058232520,-9899.79777602,0.00019905,2]
[400061336,1767058232534,-6342.17616713,0.00019905,2]
[400061362,1767058238337,-4743.53170022,0.00019905,2]
[400061363,1767058238348,-917.59345766,0.00021,2]
[400061364,1767058238359,-503.1561848,0.00021,2]
[400061365,1767058238369,-385.0,0.00021174,2]
[400061366,1767058238379,-385.0,0.00021187,2]
[400061367,1767058238389,-385.0,0.0002119,2]
[400061368,1767058238400,-385.0,0.00021224,2]
[400061369,1767058238410,-385.0,0.00021297,2]
[400061370,1767058238420,-155.0,0.00021322,2]
[400061371,1767058238430,-385.0,0.00021323,2]
[400061372,1767058238444,-385.0,0.00021328,2]
[400061373,1767058238453,-385.0,0.00021596,2]
[400061374,1767058238463,-385.0,0.000217,2]
[400061375,1767058238473,-150.99,0.00021757,2]
[400061376,1767058238483,-1545.46,0.00021757,2]
[400061377,1767058238494,-9999.99,0.00021757,2]
[400061378,1767058238504,-12645.45,0.00021757,2]
[400061379,1767058238513,-452.12,0.00021772,2]
[400061380,1767058238524,-385.0,0.00021802,2]
[400061381,1767058238534,-1867.2,0.00021826,2]
[400061382,1767058238544,-129.19049648,0.00021944,2]
[400061383,1767058238556,-70.80950352,0.00021944,2]
[400061384,1767058238566,-385.0,0.00021991,2]
[400061385,1767058238576,-385.0,0.00022119,2]
[400061387,1767058238586,-385.0,0.00022125,2]
[400061389,1767058238595,-385.0,0.00022138,2]
[400061392,1767058238605,-385.0,0.00022263,2]
[400061394,1767058238615,-385.0,0.00022433,2]
[400061396,1767058238628,-144.13049679,0.00022489,2]
[400061398,1767058238639,-240.86950321,0.00022489,2]
[400061400,1767058238653,-385.0,0.00022489,2]
[400061402,1767058238663,-385.0,0.00022556,2]
[400061404,1767058238673,-385.0,0.00022599,2]
[400061407,1767058238683,-145.88994586,0.00022656,2]
[400061409,1767058238695,-239.11005414,0.00022656,2]
[400061411,1767058238705,-385.0,0.00022678,2]
[400061413,1767058238715,-158.47829193,0.00022683,2]
[400061415,1767058238727,-610.88134267,0.00022683,2]
[400061417,1767058238739,-2629.97761171,0.00022683,2]
[400061420,1767058238755,-10885.79217888,0.00022683,2]
[400061422,1767058238765,-385.0,0.00022734,2]
[400061424,1767058238775,-20985.50564337,0.00022761,2]
[400061426,1767058238785,-385.0,0.00022906,2]
[400061428,1767058238795,-385.0,0.00022941,2]
[400061430,1767058238806,-10605.92873849,0.00024,2]
[400061433,1767058238818,-6044.77207316,0.00024,2]
[400061435,1767058238829,-1018.46525943,0.00024,2]
[400061437,1767058238839,-161.67456035,0.00024164,2]
[400061439,1767058238852,-1705.52543965,0.00024164,2]
[400061441,1767058238862,-452.12,0.00024494,2]
[400061443,1767058238872,-774.55456035,0.00024968,2]
[400061446,1767058238885,-491.89143965,0.00024968,2]
[400061448,1767058238896,-455.551,0.00024968,2]
[400061450,1767058238906,-51.55756035,0.00024968,2]
[400061583,1767058240263,-151.0,0.00017014,2]
[400061585,1767058240274,-151.0,0.00017014,2]
[400061587,1767058240284,-786.55759989,0.00024968,2]
[400061611,1767058240517,-73.88483976,0.00024968,2]
[400061613,1767058240528,-1198.0,0.00024968,2]
[400061615,1767058240538,-4811.0,0.00024968,2]
[400061616,1767058240548,-625.597,0.00024968,2]
[400061618,1767058240558,-3466.076,0.00024968,2]
[400061620,1767058240567,-2099.97,0.00025103,2]
[400061622,1767058240578,-30000.0,0.0002513,2]
[400061624,1767058240588,-14285.12942519,0.0002555,2]
[400061626,1767058240597,-20985.50564337,0.00025617,2]
[400061628,1767058240608,-1867.2,0.00026502,2]
[400061630,1767058240619,-500.0,0.00026918,2]
[400061632,1767058240629,-163.53104371,0.00027,2]